Cogmind - Beta 14 @@@ ROGUE MODE // 2024.12.28 @ 05:43:18 Player: yua241 Result: Destroyed by H-61 Shepherd with Heavy Assault Cannon Performance ------------- Evolutions (2) 1000 Regions Visited (3) 600 Robots Destroyed (61) 305 Value Destroyed (1572) 1572 Prototype IDs (4) 80 Alien Tech Used (0) 0 Bonus (0) 0 TOTAL SCORE: 3557 Bonus ------- None Cogmind --------- Core Integrity 0/550 Matter 140/300 Energy 100/100 System Corruption 0% Temperature Cool (0) Movement Core (350) Ox6 Location -8/Materials Parts ------- > --- POWER (1) -------- (None) > --- PROPULSION (4) --- (None) > --- UTILITY (4) ------ Large Storage Unit > --- WEAPON (2) ------- (None) > --- INVENTORY (15) --- Light Treads Light Treads Advanced Treads Large Storage Unit Visual Processing Unit Propulsion Shielding Datajack Peak State ------------ > --- POWER ------------ (None) > --- PROPULSION ------- Aluminum Leg Aluminum Leg Aluminum Leg Carbon-fiber Leg > --- UTILITY ---------- Large Storage Unit Medium Matter Pod Sensor Array > --- WEAPON ----------- Light Assault Rifle Rocket Launcher > --- INVENTORY -------- Light Treads Light Treads Advanced Treads Large Storage Unit Visual Processing Unit Propulsion Shielding EM Shotgun Beam Rifle Beam Rifle Light Assault Rifle Heavy Assault Rifle Grenade Launcher Datajack [Rating: 14] Favorites ----------- Power Ion Engine Engine Ion Engine Propulsion Aluminum Leg Treads Light Treads Leg Aluminum Leg Utility Medium Matter Pod Device Sensor Array Storage Medium Matter Pod Protection Light Armor Plating Weapon Light Assault Rifle Energy Gun Small Laser Ballistic Gun Light Assault Rifle Launcher Rocket Launcher Build | -11 -10 -9 -8 ------- Run | Yrd Mat Mat Mat Slots Evolved 4 | . . 2 2 Power . | . . . . Propulsion 2 | . . 2 . Utility 2 | . . . 2 Weapon . | . . . . Parts Attached 44 | 6 3 16 19 Power 3 | 1 . 2 . Engine 3 | 1 . 2 . Core . | . . . . Reactor . | . . . . Propulsion 16 | 2 . 9 5 Treads 5 | . . 4 1 Leg 11 | 2 . 5 4 Wheel . | . . . . Hover . | . . . . Flight . | . . . . Utility 5 | 1 1 1 2 Device 1 | . . . 1 Storage 3 | 1 1 1 . Processor . | . . . . Hackware . | . . . . Protection 1 | . . . 1 Artifact . | . . . . Weapon 20 | 2 2 4 12 Energy Gun 4 | 1 . . 3 Energy Cannon . | . . . . Ballistic Gun 9 | 1 1 3 4 Ballistic Cannon . | . . . . Launcher 7 | . 1 1 5 Special Weapon . | . . . . Impact Weapon . | . . . . Slashing Weapon . | . . . . Piercing Weapon . | . . . . Special Melee Weapon . | . . . . Unidentified Prototypes . | . . . . Parts Lost 21 | . . 7 14 Power 1 | . . 1 . Propulsion 10 | . . 6 4 Utility 3 | . . . 3 Weapon 7 | . . . 7 Highest Loss Streak 12 | . . 3 12 To Critical Strikes . | . . . . Average Slot Usage (%) 84 | . 86 89 72 Engine 7 | . 14 9 . Treads 7 | . . 5 16 Leg 25 | . 28 30 12 Device 1 | . . . 8 Storage 19 | . 15 21 17 Protection 1 | . . . 4 Energy Gun 1 | . 11 . . Ballistic Gun 18 | . 16 21 12 Peak Build Rating 14 | 6 7 11 14 Average Rating 9 | 4 6 9 11 On Entrance 5 | . 6 7 10 Naked Turns . | . . . . Heaviest Build 32 | 12 14 32 30 Greatest Support 82 | 20 20 80 82 Greatest Overweight (x) 9 | 1 . 9 7 Average Overweight (x) . | . . . . Largest Inventory Capacity 15 | 8 8 15 15 Average Capacity 13 | 7 8 14 15 Most Carried 15 | 7 8 15 15 Average Carried 11 | 5 6 12 12 Final Capacity 15 | 8 8 15 15 Final Carried 15 | 7 7 15 7 Class Distribution -------------------- 51% | Mutant 48% | Scavenger-Mutant Dominant Class ---------------- Mutant | -10/Materials Scavenger-Mutant | -9/Materials Mutant | -8/Materials Resources | -11 -10 -9 -8 ----------- Run | Yrd Mat Mat Mat Matter Collected 884 | 235 116 378 155 Remotely . | . . . . Salvage Created 1733 | 109 355 691 578 Parts 119 | 8 22 51 38 Haulers Intercepted . | . . . . Recyclers Shooed 1 | . . 1 . Parts Field Recycled . | . . . . Retrieved Matter . | . . . . Parts Self-Destructed . | . . . . Prevented . | . . . . Kills | -11 -10 -9 -8 ------- Run | Yrd Mat Mat Mat Combat Hostiles Destroyed 41 | . 11 14 16 Guns 24 | . 8 11 5 AOE 17 | . 3 3 11 Classes Destroyed 9 | 2 3 3 1 Worker 6 | . 1 2 3 Builder 4 | . . 2 2 Tunneler 3 | 3 . . . Recycler 2 | 1 . 1 . Watcher 5 | . . 3 2 Swarmer 10 | . 3 3 4 Grunt 24 | . 8 6 10 Duelist 1 | . . . 1 Sentry 6 | . . 5 1 Best Kill Streak 12 | 4 5 6 12 Combat Bots Only 5 | . 4 4 5 Max Kills in Single Turn 6 | 1 4 2 6 Gunslinging . | . . . . Exploded 3 | . 2 2 3 Melee . | . . . . Uniques/NPCs Destroyed . | . . . . Combat | -11 -10 -9 -8 -------- Run | Yrd Mat Mat Mat Hostile Shots Fired 246 | . 52 103 91 Missed 75 | . 19 27 29 Damage Taken 2983 | . 366 922 1695 Core 794 | . 40 202 552 Absorbed by Shields . | . . . . Regen/Repaired (Parts) 78 | . . 78 . Core Remaining (%) 77 | 100 84 49 . Volleys Fired 163 | 10 21 67 65 Largest 2 | 2 2 2 2 Hottest 112 | 60 60 53 112 Shots Fired 301 | 20 42 132 107 Gun 283 | 20 39 129 95 Cannon . | . . . . Launcher 18 | . 3 3 12 Special . | . . . . Kinetic 245 | 10 21 129 85 Thermal 34 | 10 18 . 6 Explosive 18 | . 3 3 12 Electromagnetic 4 | . . . 4 Robot Hit Streak 15 | 5 10 15 9 Robot Miss Streak 4 | 2 2 4 2 Penetration Max . | . . . . Secondary Targets 1 | . . 1 . Max Gunslinging Chain 1 | . . 1 . Shots Hit Robots 195 | 11 25 84 75 Core Hits 123 | 6 20 43 54 Critical Kills . | . . . . Critical Parts Destroyed 2 | 1 . 1 . Critical Strikes 2 | 1 . 1 . Destroy 2 | 1 . 1 . Melee Attacks . | . . . . Impact . | . . . . Slashing . | . . . . Piercing . | . . . . Sneak Attacks . | . . . . Combat Hostiles . | . . . . Follow-up Attacks . | . . . . Damage Inflicted 4183 | 108 441 1339 2295 Guns 1953 | 108 255 868 722 Cannons . | . . . . Explosions 2229 | . 186 471 1572 Melee . | . . . . Ramming 1 | . . . 1 Kinetic 1611 | 40 101 868 602 Thermal 296 | 68 154 . 74 Explosive 2229 | . 186 471 1572 Electromagnetic 46 | . . . 46 Impact . | . . . . Slashing . | . . . . Piercing . | . . . . Highest Corruption . | . . . . Average Corruption . | . . . . Corruption Purged . | . . . . Corruption Blocked . | . . . . Overload Shots . | . . . . Overflow Damage 42 | . . . 42 Projectiles . | . . . . Explosions 42 | . . . 42 Melee . | . . . . Knockbacks . | . . . . Impact . | . . . . Kinetic . | . . . . Secondary . | . . . . Self-Inflicted Damage 85 | . 18 7 60 Shots 6 | . 1 1 4 Rammed 1 | . . . 1 Targets Rammed 1 | . . . 1 Kicked . | . . . . Crushed . | . . . . Highest Temperature 120 | 40 120 24 19 Average Temperature 23 | 21 40 6 6 Received Heat Transfer 837 | . 162 333 342 Siege Activations . | . . . . Robots Corrupted . | . . . . Combat Hostiles . | . . . . Parts Fried . | . . . . Impact Corruptions . | . . . . Robots Melted . | . . . . Combat Hostiles . | . . . . Parts Melted . | . . . . Heat Transferred 685 | 150 350 . 185 Parts Sabotaged . | . . . . Parts Stolen . | . . . . Parts Stripped . | . . . . Power Chain Reactions . | . . . . Alert | -11 -10 -9 -8 ------- Run | Yrd Mat Mat Mat Peak Influence 398 | 20 398 224 331 Initial 167 | . 13 167 78 Average 144 | 7 180 139 164 Maximum Alert Level 1 | . 1 1 1 Low Security (%) 72 | 100 55 75 68 Level 1 27 | . 44 24 31 Level 2 . | . . . . Level 3 . | . . . . Level 4 . | . . . . Level 5 . | . . . . High Security . | . . . . Max Security . | . . . . Squads Dispatched 3 | . 1 1 1 Investigation 1 | . . 1 . Extermination . | . . . . Reinforcement 2 | . 1 . 1 Assault . | . . . . Garrison . | . . . . Intercept . | . . . . Searches Triggered . | . . . . Construction Impeded . | . . . . Haulers Reinforced . | . . . . Active Scanning Responses . | . . . . Cargo Convoy Interrupts . | . . . . Stealth | -11 -10 -9 -8 --------- Run | Yrd Mat Mat Mat Distress Signals 4 | . 1 1 2 Communications Jammed . | . . . . Distress Signals . | . . . . Times Spotted 67 | . 17 23 27 Peak Tracking Total 9 | . 5 4 9 Tactical Retreats 3 | . 2 . 1 Traps | -11 -10 -9 -8 ------- Run | Yrd Mat Mat Mat Traps Triggered . | . . . . Indirectly . | . . . . Trap Hack Attempts . | . . . . Triggered . | . . . . Disarmed 2 | . . 2 . Reprogrammed . | . . . . Reused . | . . . . Traps Extracted . | . . . . Installed . | . . . . Triggered . | . . . . Machines | -11 -10 -9 -8 ---------- Run | Yrd Mat Mat Mat Machines Disabled 2 | . 2 . . Max in Single Turn 2 | . 2 . . Machines Repaired . | . . . . Machines Dismantled . | . . . . Machines Sabotaged . | . . . . Overloaded Fab Kills . | . . . . Hacking | -11 -10 -9 -8 --------- Run | Yrd Mat Mat Mat Machines Accessed 11 | . 3 8 . Terminals 7 | . 2 5 . Fabricators . | . . . . Repair Stations 2 | . . 2 . Recycling Units 1 | . 1 . . Scanalyzers 1 | . . 1 . Garrison Access . | . . . . Total Hacks 31 | . 10 21 . Successful 17 | . 6 11 . Failed 14 | . 4 10 . Catastrophic 2 | . . 2 . Database Lockouts . | . . . . Manual . | . . . . Terminals 19 | . 6 13 . Fabricators . | . . . . Repair Stations 6 | . . 6 . Recycling Units 4 | . 4 . . Scanalyzers 2 | . . 2 . Garrison Access . | . . . . Terminal Hacks 10 | . 3 7 . Prototype ID Bank 2 | . 1 1 . Branch Access Points 2 | . 1 1 . Locate Traps 1 | . 1 . . Disarm Traps 1 | . . 1 . Patrol Status 1 | . . 1 . Transport Status 1 | . . 1 . Hauler Manifests 1 | . . 1 . Registered Components 1 | . . 1 . Fabricator Hacks . | . . . . Repair Station Hacks 2 | . . 2 . Scan Component 1 | . . 1 . Repair 1 | . . 1 . Recycling Unit Hacks 3 | . 3 . . Recycle Component 3 | . 3 . . Scanalyzer 2 | . . 2 . Insert Component 1 | . . 1 . Analyze 1 | . . 1 . Garrison Access Hacks . | . . . . Unauthorized Hacks . | . . . . Terminals . | . . . . Fabricators . | . . . . Repair Stations . | . . . . Recycling Units . | . . . . Scanalyzers . | . . . . Garrison Access . | . . . . Data Cores Recovered . | . . . . Used . | . . . . Hacking Detections 8 | . 3 5 . Full Trace Events 1 | . . 1 . Feedback Events . | . . . . Feedback Blocked . | . . . . Robot Schematics Acquired . | . . . . Robots Built . | . . . . Authchips . | . . . . Time . | . . . . Total Robot Build Rating . | . . . . Part Schematics Acquired . | . . . . Parts Built . | . . . . Authchips . | . . . . Time . | . . . . Total Part Build Rating . | . . . . Parts Repaired 1 | . . 1 . Time 26 | . . 26 . Parts Recycled 3 | . 3 . . Recycled Matter . | . . . . Retrieved Matter . | . . . . Retrieved Components . | . . . . Parts Scanalyzed 1 | . . 1 . Part Schematics Acquired . | . . . . Parts Damaged . | . . . . Bothacking | -11 -10 -9 -8 ------------ Run | Yrd Mat Mat Mat Used RIF Installer . | . . . . Robots Hacked . | . . . . Non-combat . | . . . . Combat . | . . . . Robot Hacks Applied . | . . . . Relay Couplers Released . | . . . . Fabnet Peak Effective % . | . . . . Robots Rewired . | . . . . Allies Hacked . | . . . . Hacks Repelled . | . . . . Allies | -11 -10 -9 -8 -------- Run | Yrd Mat Mat Mat Total Allies . | . . . . Largest Group . | . . . . Highest-Rated Group . | . . . . Highest-Rated Ally . | . . . . Total Orders . | . . . . Ally Attacks . | . . . . Total Damage . | . . . . Kills . | . . . . Allies Corrupted . | . . . . Allies Melted . | . . . . Intel | -11 -10 -9 -8 ------- Run | Yrd Mat Mat Mat Robot Analysis Total . | . . . . Derelict Logs Recovered . | . . . . Drone Launches . | . . . . Drone Recoveries . | . . . . Exploration | -11 -10 -9 -8 ------------- Run | Yrd Mat Mat Mat Turns Passed 2529 | 144 398 1403 584 Spaces Moved 1216 | 87 267 706 156 Core 21 | 11 . 4 6 Treads 216 | . . 118 98 Legs 979 | 76 267 584 52 Wheels . | . . . . Hover . | . . . . Flight . | . . . . Fastest Speed 50 | 50 120 120 120 Average Speed 134 | 111 120 137 155 Slowest Speed 500 | 190 120 500 400 Overloaded Moves . | . . . . Propulsion Burnouts . | . . . . Robots Hopped . | . . . . Cave-ins Triggered . | . . . . Exploration Rate (%) 24 | 4 42 37 14 Regions Visited 3 Branch Regions . Pre-discovered Areas . | . . . . Known Exits Taken . | . . . . Unknown Exits Taken 3 | 1 1 1 . Scrap Searched . | . . . . Spaces Dug . | . . . . Terrain Destroyed 149 | . 7 25 117 Melee . | . . . . Projectile . | . . . . AOE 149 | . 7 25 117 Terrain Rammed . | . . . . Walls Destroyed . | . . . . Machines Disabled . | . . . . Actions | -11 -10 -9 -8 --------- Run | Yrd Mat Mat Mat Total 1852 | 115 310 1029 398 Wait 357 | . 5 204 148 Move 1213 | 86 266 705 156 Hop . | . . . . Pick Up 53 | 13 9 27 4 Fast Attach . | . . . . Attach 34 | 6 3 14 11 Detach 6 | . 1 3 2 Swap 10 | . . 2 8 Drop 15 | . 5 7 3 Fire 163 | 10 21 67 65 Melee . | . . . . Ram 1 | . . . 1 Kick . | . . . . Crush . | . . . . Escape Stasis . | . . . . Rewire . | . . . . Trap . | . . . . Miscellaneous . | . . . . Route ------- -11/Scrapyard -10/Materials (discovered 2 exits: *Mat / *Min) -9/Materials (discovered 2 exits: [*Mat] / Min) -8/Materials History --------- Turn | Location | Event 9 | -11/Scrapyard | Discovered new exit (range 15) 145 | -11/Scrapyard | Entered Materials 313 | -10/Materials | Identified exit to Mines 317 | -10/Materials | Build established: Mutant 502 | -10/Materials | Discovered new exit (range 11) 543 | -10/Materials | Entered another Materials area 543 | -9/Materials | Evolved 2 slots: Propulsion x2 739 | -9/Materials | Repaired Lgt. Assault Rifle 845 | -9/Materials | Build established: Scavenger-Mutant 1431 | -9/Materials | Identified exit to Mines 1600 | -9/Materials | Lost 3 parts (3n) 1789 | -9/Materials | Core integrity fell below 50% 1842 | -9/Materials | Discovered new exit (range 16) 1879 | -9/Materials | Build established: Mutant 1946 | -9/Materials | Entered another Materials area 1946 | -8/Materials | Evolved 2 slots: Utility x2 2478 | -8/Materials | Core integrity fell below 50% 2510 | -8/Materials | Core integrity fell below 20% 2530 | -8/Materials | Destroyed by H-61 Shepherd with Heavy Assault Cannon Last Messages --------------- 02493_ Knocked back. 02496_ Beam Rifle destroyed. 02496_ Knocked back. 02497_ Acquired 3 matter. 02503_ G-47 Trooper destroyed. 02503_ K-01 Serf collects debris. 02504_ Beam Rifle destroyed. 02504_ Knocked back. 02506_ M-13 Machinist repairs H-61 Shepherd. 02507_ K-01 Serf collects debris. 02509_ Med. Matter Pod destroyed. 02509_ Critical hit (Blast). 02509_ Knocked back. 02510_ Acquired 4 matter. 02512_ K-01 Serf collects debris. 02514_ Knocked back. 02516_ K-01 Serf collects debris. 02525_ Knocked back. 02527_ K-01 Serf collects debris. 02528_ Slammed into H-61 Shepherd. Map ----- +----------------------------------------------------+ | ????????????############## ##??????????????????? | | ?????????????############ ########???????????? | | ???????????? # ""????????? | | ???????????? + "Y????????? | | ???????????? # ""????????? | | ?????????????############ #???????????? | | ??????????????????######### #???????????? | | ??????????????????# # #???????????? | | ??????????????????# =# !! #???????????? | | ??????????????????# # !! #???????????? | | ??????????????????# + #???????????? | | ??????????????????# """ # #???????????? | | ??????????????????# """ # #???????????? | | ??????????????????# """ # #???????????? | | ??????????????????###+##### """ #???????????? | | ???????????????????## ##### """ ##??????????? | | ???????????????????# """ ???????? | | ???????????????????# ???????? | | ???????????????????# ???????? | | ???????????????????# ##############??????????? | | ???????????????#####k ###?????????????????????? | | ??????""???????# # ##?????# #??????????????? | | ?????""" ######### #??### ##???????????? | | ?????"" w % %#? # # ##???### * | | ?? % % ## ## ### =% = [ | | ?? @H! %k %[ %[ [%*%= | | ???##### #############;# # ## #!# ![% | | ???????# ??????## #### # # #???### = | | ????????????????# # #??? # #????????????? | | ????????????????########???###?# ##??????????????? | | ?????????????????????????????????#???????????????? | | ?????????????????????????????????????????????????? | | ?????????????????????????????????????????????????? | | ?????????????????????????????????????????????????? | | ?????????????????????????????????????????????????? | | ?????????????????????????????????????????????????? | | ?????????????????????????????????????????????????? | | ?????????????????????????????????????????????????? | | ?????????????????????????????????????????????????? | | ?????????????????????????????????????????????????? | | ?????????????????????????????????????????????????? | | ?????????????????????????????????????????????????? | | ?????????????????????????????????????????????????? | | ?????????????????????????????????????????????????? | | ?????????????????????????????????????????????????? | | ?????????????????????????????????????????????????? | | ?????????????????????????????????????????????????? | | ?????????????????????????????????????????????????? | | ?????????????????????????????????????????????????? | | ?????????????????????????????????????????????????? | +----------------------------------------------------+ Best States ------------- Heat Dissipation 31 Energy Generation 10 Energy Capacity 250 Matter Stores 400 Matter Capacity 400 Sight Range 16 Robot Scan Range 14 Terrain Scan Density 10 Armor Coverage 150 Evasion (%) 55 Recoil Reduction 4 Item Schematics ----------------- None Robot Schematics ------------------ None Fabricated ------------ Nothing Alien Tech Used ----------------- None Achievements -------------- None Challenges ------------ None Game ------ Seed TeslaBlastMultirail Manual? 0 Play Time 00:27:56 Cumulative 3.3 hours Start 2024.12.28 @ 04:03:22 End 2024.12.28 @ 05:43:18 Sessions 1 Manual Loads 0 Difficulty Rogue Special Mode None Game No. 12 Rogue 12 Adventurer 0 Explorer 0 Win Type - Total 0 Types 0/0/0/0/0/0/0/0/0 Lore% 1 Gallery% 6 Achievement% 8 Wizard Run 0 Options --------- Layout 2 ASCII 0 Keyboard 1 Movement Vi Keybinds 0 Fullscreen 2 Font 24/Swanston Map View 50x44 Zoom Use 0% Tactical HUD 1 Map Filters NONE Filters NONE Steam 1 RUN: 7ea699ca-70e6-4b62-b8e0-7113a688e1fe